[Event "Fast Chess"]
[Site "ChessKid.com"]
[Date "2020.04.30"]
[Round "2"]
[White "Li, Patrick"]
[Black "Sasse, Gabriel"]
[Result "0-1"]
[ECO "C50"]
[WhiteElo "1095"]
[BlackElo "1271"]
[Annotator "wähle richtigen Schlagzug"]
[PlyCount "40"]
[EventDate "2020.??.??"]
[TimeControl "300+50"]
[WhiteClock "0:05:37"]
[BlackClock "0:04:52"]

1. e4 {[%emt 0:00:47]} e5 {[%emt 0:00:46]} 2. Nf3 {[%emt 0:00:47]} Nc6 {
[%emt 0:00:46]} 3. Nc3 {[%emt 0:00:48]} Bc5 {[%emt 0:00:46]} 4. Bc4 {[%emt 0:
00:48]} h6 {[%emt 0:00:46]} 5. O-O {[%emt 0:00:49]} Nf6 {[%emt 0:00:49]} 6. a3
{[%emt 0:00:54]} O-O {[%emt 0:00:47]} 7. b4 {[%emt 0:00:47]} Nd4 {[%emt 0:00:
47]} 8. Nxd4 $4 {[%emt 0:00:49]} Bxd4 {[%emt 0:00:48]} 9. h3 {[%emt 0:00:58]}
c6 {[%emt 0:00:55]} 10. Qf3 {[%emt 0:00:55]} d5 {[%emt 0:00:47]} 11. Bd3 {
[%emt 0:00:53]} dxe4 {[%emt 0:00:48]} 12. Bxe4 {[%emt 0:00:52]} Nxe4 {[%emt 0:
00:46]} 13. Qxe4 {[%emt 0:00:49]} Qg5 {[%emt 0:00:52]} 14. d3 {[%emt 0:00:47]}
Qd8 {[%emt 0:00:48]} 15. Qf3 {[%emt 0:00:53]} Bxc3 {[%emt 0:00:48]} 16. Qg3 {
[%emt 0:00:51]} Bxa1 {[%emt 0:00:53]} 17. Bxh6 {[%emt 0:00:47]} e4 {[%emt 0:00:
53]} 18. Rxa1 {[%emt 0:00:53]} Qd4 {[%emt 0:00:47]} 19. Bxg7 {[%emt 0:00:53]}
Qxg7 {[%emt 0:00:48]} 20. Qxg7+ {[%emt 0:00:50]} Kxg7 {[%emt 0:00:46]
LimeFarActor won by resignation} 0-1

[Event "Fast Chess"]
[Site "ChessKid.com"]
[Date "2020.04.30"]
[Round "3"]
[White "Li, Tobias"]
[Black "Horvath, Alexander"]
[Result "1-0"]
[ECO "C42"]
[WhiteElo "1293"]
[BlackElo "1320"]
[Annotator "Bauernendspiel; Remis ist besser als verliere"]
[PlyCount "147"]
[EventDate "2020.??.??"]
[TimeControl "300+50"]
[WhiteClock "0:05:54"]
[BlackClock "0:06:02"]

1. e4 {[%emt 0:00:48]} e5 {[%emt 0:00:47]} 2. Nf3 {[%emt 0:00:47]} Nf6 {
[%emt 0:00:50]} 3. Nxe5 {[%emt 0:00:49]} Qe7 {[%emt 0:00:48]} 4. Nf3 {[%emt 0:
00:47]} Nxe4 {[%emt 0:00:47]} 5. Qe2 {[%emt 0:00:46]} Nc6 {[%emt 0:00:51]} 6.
d3 {[%emt 0:00:48]} Nf6 {[%emt 0:00:52]} 7. Nc3 {[%emt 0:00:51]} d6 {[%emt 0:
00:53]} 8. Bg5 {[%emt 0:00:49]} h6 {[%emt 0:00:57]} 9. Bh4 {[%emt 0:00:48]} g5
{[%emt 0:00:48]} 10. Bg3 {[%emt 0:00:48]} g4 {[%emt 0:00:49]} 11. Nd2 {[%emt 0:
00:51]} Nd4 {[%emt 0:00:57]} 12. Qxe7+ {[%emt 0:00:51]} Bxe7 {[%emt 0:00:49]}
13. O-O-O {[%emt 0:00:47]} Be6 {[%emt 0:00:49]} 14. f3 {[%emt 0:01:09]} O-O-O {
[%emt 0:00:53]} 15. fxg4 {[%emt 0:00:50]} Bxg4 {[%emt 0:00:49]} 16. Re1 {
[%emt 0:00:48]} Rde8 {[%emt 0:00:53]} 17. Bf2 {[%emt 0:00:51]} Nc6 {[%emt 0:00:
50]} 18. g3 {[%emt 0:00:54]} Bf3 {[%emt 0:00:50]} 19. Rg1 {[%emt 0:00:48]} Ng4
{[%emt 0:00:51]} 20. Bg2 {[%emt 0:00:53]} Bxg2 {[%emt 0:01:00]} 21. Rxg2 {
[%emt 0:00:50]} Nxf2 {[%emt 0:00:54]} 22. Rxf2 {[%emt 0:00:48]} d5 {[%emt 0:00:
49]} 23. Nxd5 {[%emt 0:00:52]} Bc5 {[%emt 0:00:51]} 24. Rff1 {[%emt 0:01:04]}
Rxe1+ {[%emt 0:00:54]} 25. Rxe1 {[%emt 0:00:47]} Bf2 {[%emt 0:00:50]} 26. Rf1 {
[%emt 0:00:53]} Re8 {[%emt 0:00:51]} 27. Nf6 {[%emt 0:00:52]} Re6 {[%emt 0:00:
54]} 28. Ng4 {[%emt 0:00:56]} Be3 {[%emt 0:00:55]} 29. Re1 {[%emt 0:00:50]}
Bxd2+ {[%emt 0:00:50]} 30. Kxd2 {[%emt 0:00:48]} Rxe1 {[%emt 0:00:51]} 31. Kxe1
{[%emt 0:00:47]} h5 {[%emt 0:00:48]} 32. Nh6 {[%emt 0:00:50]} Nd4 {[%emt 0:00:
48]} 33. Kd2 {[%emt 0:00:50]} Nf3+ {[%emt 0:00:47]} 34. Ke2 {[%emt 0:00:47]}
Nxh2 {[%emt 0:00:46]} 35. Nxf7 {[%emt 0:00:46]} Kd7 {[%emt 0:00:51]} 36. Ne5+ {
[%emt 0:00:47]} Kd6 {[%emt 0:00:47]} 37. Nf3 {[%emt 0:00:46]} Nxf3 {[%emt 0:00:
50]} 38. Kxf3 {[%emt 0:00:47]} c5 {[%emt 0:00:46]} 39. Ke2 {[%emt 0:00:58]} Ke5
{[%emt 0:00:47]} 40. Ke3 {[%emt 0:00:48]} b5 {[%emt 0:00:47]} 41. c3 {[%emt 0:
00:47]} a5 {[%emt 0:00:47]} 42. b3 {[%emt 0:00:46]} b4 {[%emt 0:00:52]} 43. c4
{[%emt 0:00:59]} Kf5 {[%emt 0:00:48]} 44. Kf3 {[%emt 0:00:49]} Kg5 {[%emt 0:00:
50]} 45. Ke3 {[%emt 0:01:00]} Kg4 {[%emt 0:00:49]} 46. Kf2 {[%emt 0:00:47]} Kh3
{[%emt 0:00:51]} 47. Kf3 {[%emt 0:00:49]} Kh2 {[%emt 0:00:53]} 48. Kf2 {
[%emt 0:00:49]} Kh1 {[%emt 0:00:50]} 49. g4 {[%emt 0:01:10]} hxg4 {[%emt 0:00:
53]} 50. Kg3 {[%emt 0:00:47]} Kg1 {[%emt 0:00:47]} 51. Kxg4 {[%emt 0:00:46]}
Kf2 {[%emt 0:00:46]} 52. Kf4 {[%emt 0:00:46]} Ke2 {[%emt 0:00:46]} 53. Ke4 {
[%emt 0:00:46]} Kd2 {[%emt 0:00:48]} 54. Kd5 {[%emt 0:00:46]} Kxd3 {[%emt 0:00:
47]} 55. Kxc5 {[%emt 0:00:46]} Kc2 {[%emt 0:00:47]} 56. Kb5 {[%emt 0:00:46]}
Kb2 {[%emt 0:00:46]} 57. Kxa5 {[%emt 0:00:46]} Kxa2 {[%emt 0:00:46]} 58. Kxb4 {
[%emt 0:00:46]} Kb2 {[%emt 0:00:47]} 59. c5 {[%emt 0:00:46]} Kc2 {[%emt 0:00:
46]} 60. c6 {[%emt 0:00:46]} Kd3 {[%emt 0:00:46]} 61. c7 {[%emt 0:00:46]} Kd4 {
[%emt 0:00:46]} 62. c8=Q {[%emt 0:00:47]} Kd5 {[%emt 0:00:46]} 63. Qc5+ {
[%emt 0:00:47]} Ke6 {[%emt 0:00:47]} 64. Kc3 {[%emt 0:00:46]} Kd7 {[%emt 0:00:
47]} 65. b4 {[%emt 0:00:46]} Ke6 {[%emt 0:00:46]} 66. b5 {[%emt 0:00:47]} Kd7 {
[%emt 0:00:45]} 67. Qc6+ {[%emt 0:00:48]} Kd8 {[%emt 0:00:47]} 68. Qb7 {
[%emt 0:00:47]} Ke8 {[%emt 0:00:46]} 69. Qc7 {[%emt 0:00:46]} Kf8 {[%emt 0:00:
47]} 70. Qd7 {[%emt 0:00:48]} Kg8 {[%emt 0:00:50]} 71. Qe7 {[%emt 0:00:45]} Kh8
{[%emt 0:00:53]} 72. b6 {[%emt 0:00:46]} Kg8 {[%emt 0:00:47]} 73. b7 {[%emt 0:
00:45]} Kh8 {[%emt 0:00:46]} 74. b8=Q# {[%emt 0:00:46] OnlyHungryKiwi won by
checkmate} 1-0

[Event "Fast Chess"]
[Site "ChessKid.com"]
[Date "2020.04.30"]
[Round "3"]
[White "Fennesz, Moritz"]
[Black "Dai, Lana"]
[Result "0-1"]
[ECO "A00"]
[WhiteElo "963"]
[BlackElo "1308"]
[Annotator "Turmendspiel; Remis ist besser als verlieren"]
[PlyCount "96"]
[EventDate "2020.??.??"]
[TimeControl "300+50"]
[WhiteClock "0:05:36"]
[BlackClock "0:05:00"]

1. g4 {[%emt 0:00:49]} e5 {[%emt 0:00:47]} 2. Bg2 {[%emt 0:00:47]} Bc5 {
[%emt 0:00:50]} 3. b3 {[%emt 0:00:51]} d6 {[%emt 0:00:46]} 4. Bb2 {[%emt 0:00:
49]} Bxg4 {[%emt 0:00:47]} 5. f3 {[%emt 0:00:57]} Bf5 {[%emt 0:00:49]} 6. e4 {
[%emt 0:00:50]} Be6 {[%emt 0:00:48]} 7. Ne2 {[%emt 0:01:02]} Nc6 {[%emt 0:00:
49]} 8. d4 {[%emt 0:00:50]} exd4 {[%emt 0:00:47]} 9. Nxd4 {[%emt 0:00:50]} Nxd4
{[%emt 0:00:47]} 10. Bxd4 {[%emt 0:00:48]} Bxd4 {[%emt 0:00:47]} 11. Qxd4 {
[%emt 0:00:49]} Qf6 {[%emt 0:00:51]} 12. Qxf6 {[%emt 0:00:49]} Nxf6 {[%emt 0:
00:46]} 13. Nc3 {[%emt 0:00:57]} O-O-O {[%emt 0:00:47]} 14. O-O-O {[%emt 0:00:
47]} d5 {[%emt 0:00:51]} 15. exd5 {[%emt 0:00:49]} Nxd5 {[%emt 0:00:48]} 16.
Rxd5 $2 {[%emt 0:00:55]} Bxd5 {[%emt 0:00:48]} 17. Nxd5 {[%emt 0:00:47]} Rxd5 {
[%emt 0:00:47]} 18. f4 {[%emt 0:00:48]} Rf5 {[%emt 0:00:50]} 19. Rf1 {[%emt 0:
00:51]} Re8 {[%emt 0:00:49]} 20. Bh3 {[%emt 0:00:48]} g6 {[%emt 0:00:57]} 21.
Bxf5+ {[%emt 0:00:49]} gxf5 {[%emt 0:00:46]} 22. h4 {[%emt 0:00:57]} Re2 {
[%emt 0:00:52]} 23. Rg1 {[%emt 0:00:50]} Rf2 {[%emt 0:00:55]} 24. Rg5 {[%emt 0:
00:48]} Rf1+ {[%emt 0:00:48]} 25. Kb2 {[%emt 0:00:49]} Rxf4 {[%emt 0:00:46]}
26. Rg7 {[%emt 0:00:51]} Rxh4 {[%emt 0:00:48]} 27. Rxf7 {[%emt 0:00:48]} f4 {
[%emt 0:00:47]} 28. Kc1 {[%emt 0:01:02]} h5 {[%emt 0:00:51]} 29. Kd2 {[%emt 0:
00:47]} Rg4 {[%emt 0:00:50]} 30. Kd3 {[%emt 0:00:47]} h4 {[%emt 0:00:46]} 31.
Kd4 {[%emt 0:00:48]} f3+ {[%emt 0:00:49]} 32. Ke5 {[%emt 0:00:47]} Rg3 {
[%emt 0:00:56]} 33. Ke6 {[%emt 0:00:48]} Rg6+ {[%emt 0:00:54]} 34. Ke7 {
[%emt 0:00:50]} Rg8 {[%emt 0:00:53]} 35. c4 {[%emt 0:00:54]} h3 {[%emt 0:00:53]
} 36. Rxf3 {[%emt 0:00:52]} h2 {[%emt 0:00:46]} 37. Rf1 {[%emt 0:00:48]} Rg7+ {
[%emt 0:00:49]} 38. Ke6 {[%emt 0:00:51]} Rg6+ {[%emt 0:00:55]} 39. Ke5 $4 {
[%emt 0:00:48]} Rg1 $3 {[%emt 0:00:50]} 40. Rxg1 {[%emt 0:00:56]} hxg1=Q {
[%emt 0:00:48]} 41. Ke6 {[%emt 0:00:47]} Qg5 {[%emt 0:00:49]} 42. Kf7 {[%emt 0:
00:48]} Qh6 {[%emt 0:00:48]} 43. Ke7 {[%emt 0:00:48]} Qd6+ {[%emt 0:00:48]} 44.
Ke8 {[%emt 0:00:48]} Qd7+ {[%emt 0:00:51]} 45. Kf8 {[%emt 0:00:49]} Kd8 {
[%emt 0:00:46]} 46. Kg8 {[%emt 0:00:48]} Ke8 {[%emt 0:00:46]} 47. Kh8 {[%emt 0:
00:47]} Kf7 {[%emt 0:00:57]} 48. Kh7 {[%emt 0:00:48]} Qh3# {[%emt 0:00:47]
TopBrownCave won by checkmate} 0-1

[Event "Fast Chess"]
[Site "ChessKid.com"]
[Date "2020.04.30"]
[Round "3"]
[White "Halimi, Dorian"]
[Black "Sasse, Gabriel"]
[Result "1/2-1/2"]
[ECO "C01"]
[WhiteElo "1115"]
[BlackElo "1268"]
[Annotator "Röntgenangriff"]
[PlyCount "121"]
[EventDate "2020.??.??"]
[TimeControl "300+50"]
[WhiteClock "0:06:30"]
[BlackClock "0:06:37"]

1. d4 {[%emt 0:00:47]} e6 {[%emt 0:00:47]} 2. e4 {[%emt 0:00:46]} Nc6 {[%emt 0:
00:49]} 3. Nc3 {[%emt 0:00:46]} e5 {[%emt 0:00:49]} 4. d5 {[%emt 0:00:47]} Nb4
{[%emt 0:00:50]} 5. Bb5 {[%emt 0:00:52]} c6 {[%emt 0:00:49]} 6. dxc6 {[%emt 0:
00:47]} dxc6 {[%emt 0:00:46]} 7. Bc4 {[%emt 0:00:47]} Nf6 {[%emt 0:00:48]} 8.
Qxd8+ {[%emt 0:00:52]} Kxd8 {[%emt 0:00:48]} 9. Bg5 {[%emt 0:00:47]} Nxc2+ {
[%emt 0:00:47]} 10. Kd1 {[%emt 0:00:50]} Nxa1 {[%emt 0:00:46]} 11. Bxf6+ {
[%emt 0:00:48]} gxf6 {[%emt 0:00:47]} 12. Bxf7 {[%emt 0:00:47]} Bd7 {[%emt 0:
00:54]} 13. Nf3 {[%emt 0:00:48]} Kc7 {[%emt 0:00:47]} 14. Kd2 {[%emt 0:00:51]}
Rc8 {[%emt 0:00:50]} 15. Rxa1 {[%emt 0:00:49]} Kb8 {[%emt 0:00:47]} 16. Rc1 {
[%emt 0:00:47]} Rd8 {[%emt 0:00:47]} 17. Ke2 {[%emt 0:00:54]} c5 {[%emt 0:00:
54]} 18. Nd5 {[%emt 0:00:50]} Bb5+ {[%emt 0:00:54]} 19. Ke3 {[%emt 0:00:50]}
Bh6+ {[%emt 0:00:50]} 20. Ng5 {[%emt 0:00:58]} Bxg5+ {[%emt 0:00:47]} 21. f4 {
[%emt 0:00:47]} exf4+ {[%emt 0:00:50]} 22. Nxf4 {[%emt 0:00:48]} Rd3+ {[%emt 0:
00:48]} 23. Ke2 {[%emt 0:00:51]} Bxf4 {[%emt 0:00:48]} 24. Rxc5 {[%emt 0:00:47]
} Rd2+ {[%emt 0:00:47]} 25. Kf3 {[%emt 0:00:48]} Rxb2 {[%emt 0:00:49]} 26. Rf5
{[%emt 0:00:47]} Be2+ {[%emt 0:00:54]} 27. Kxf4 {[%emt 0:00:47]} Rxa2 {[%emt 0:
00:51]} 28. Rxf6 {[%emt 0:00:46]} Bd3 {[%emt 0:00:51]} 29. e5 {[%emt 0:00:48]}
Rf2+ {[%emt 0:00:48]} 30. Kg5 {[%emt 0:00:48]} Rxf6 {[%emt 0:00:47]} 31. Kxf6 {
[%emt 0:00:47]} Rf8 {[%emt 0:00:48]} 32. e6 {[%emt 0:00:47]} Kc7 {[%emt 0:00:
48]} 33. e7 {[%emt 0:00:47]} Rc8 {[%emt 0:00:52]} 34. Kg7 {[%emt 0:00:52]} Kd7
{[%emt 0:00:53]} 35. Kf6 {[%emt 0:00:48]} b5 {[%emt 0:00:50]} 36. g4 $4 {
[%emt 0:00:54]} b4 {[%emt 0:00:47]} 37. g5 {[%emt 0:00:46]} b3 {[%emt 0:00:47]}
38. Bxb3 {[%emt 0:00:47]} a5 {[%emt 0:00:48]} 39. h4 {[%emt 0:00:50]} Rc3 {
[%emt 0:00:52]} 40. Be6+ {[%emt 0:00:50]} Ke8 {[%emt 0:00:49]} 41. Bf7+ {
[%emt 0:00:48]} Kd7 {[%emt 0:00:51]} 42. e8=Q+ {[%emt 0:00:48]} Kd6 {[%emt 0:
00:46]} 43. Qe6+ {[%emt 0:00:48]} Kc7 {[%emt 0:00:52]} 44. h5 {[%emt 0:00:49]}
Rc6 {[%emt 0:00:48]} 45. Qxc6+ {[%emt 0:00:54]} Kxc6 {[%emt 0:00:47]} 46. g6 {
[%emt 0:00:46]} hxg6 {[%emt 0:00:47]} 47. hxg6 {[%emt 0:00:47]} Bxg6 {[%emt 0:
00:46]} 48. Kxg6 {[%emt 0:00:48]} a4 {[%emt 0:00:46]} 49. Kf5 {[%emt 0:00:47]}
Kc5 {[%emt 0:00:46]} 50. Ke4 {[%emt 0:00:46]} Kb4 {[%emt 0:00:46]} 51. Kd3 {
[%emt 0:00:47]} a3 {[%emt 0:00:47]} 52. Kc2 {[%emt 0:00:48]} Ka4 {[%emt 0:00:
47]} 53. Kb1 {[%emt 0:00:48]} Kb4 {[%emt 0:00:49]} 54. Ka2 {[%emt 0:00:46]} Ka4
{[%emt 0:00:47]} 55. Bb3+ {[%emt 0:00:47]} Kb4 {[%emt 0:00:47]} 56. Bc2 {
[%emt 0:00:48]} Kc3 {[%emt 0:00:49]} 57. Bb3 {[%emt 0:00:50]} Kb4 {[%emt 0:00:
47]} 58. Bc2 {[%emt 0:00:49]} Kc3 {[%emt 0:00:46]} 59. Ba4 {[%emt 0:00:48]} Kb4
{[%emt 0:00:46]} 60. Bb3 {[%emt 0:00:49]} Kc3 {[%emt 0:00:50]} 61. Kxa3 {
[%emt 0:00:47] Game drawn - insufficient material} 1/2-1/2

[Event "Fast Chess"]
[Site "ChessKid.com"]
[Date "2020.04.30"]
[Round "1"]
[White "Li, Tobias"]
[Black "Georgiev, Maximilian"]
[Result "0-1"]
[ECO "C55"]
[WhiteElo "1296"]
[BlackElo "1406"]
[Annotator "Läuferpaar"]
[PlyCount "110"]
[EventDate "2020.??.??"]
[TimeControl "1200"]
[WhiteClock "0:14:20"]
[BlackClock "0:12:44"]

1. e4 {[%emt 0:00:15]} e5 {[%emt 0:00:02]} 2. Nf3 {[%emt 0:00:02]} Nc6 {
[%emt 0:00:02]} 3. Nc3 {[%emt 0:00:03]} Nf6 {[%emt 0:00:02]} 4. Bc4 {[%emt 0:
00:02]} h6 {[%emt 0:00:03]} 5. O-O {[%emt 0:00:01]} Bb4 {[%emt 0:00:04]} 6. h3
{[%emt 0:00:06]} O-O {[%emt 0:00:02]} 7. d3 {[%emt 0:00:03]} Na5 {[%emt 0:00:
03]} 8. Bb3 {[%emt 0:00:08]} Nxb3 {[%emt 0:00:02]} 9. axb3 {[%emt 0:00:02]} Be7
{[%emt 0:00:03]} 10. Be3 {[%emt 0:00:14]} b6 {[%emt 0:00:07]} 11. Nb5 {[%emt 0:
00:15]} a6 {[%emt 0:00:08]} 12. Nc3 {[%emt 0:00:02]} d6 {[%emt 0:00:03]} 13.
Qd2 {[%emt 0:00:13]} Bb7 {[%emt 0:00:03]} 14. Bxh6 {[%emt 0:00:03]} c5 {
[%emt 0:00:09]} 15. Qg5 {[%emt 0:00:07]} g6 {[%emt 0:00:07]} 16. Bxf8 {[%emt 0:
00:06]} Kxf8 {[%emt 0:00:03]} 17. Qh6+ {[%emt 0:00:02]} Kg8 {[%emt 0:00:04]}
18. Ng5 {[%emt 0:00:03]} Bc6 {[%emt 0:00:17]} 19. Qh4 {[%emt 0:00:12]} Ra7 {
[%emt 0:00:13]} 20. Nd5 {[%emt 0:00:08]} Nxd5 {[%emt 0:00:03]} 21. exd5 {
[%emt 0:00:04]} Bxg5 {[%emt 0:00:03]} 22. Qe4 {[%emt 0:00:06]} Bb7 {[%emt 0:00:
06]} 23. Qg4 {[%emt 0:00:21]} Bc8 {[%emt 0:00:03]} 24. Qg3 {[%emt 0:00:03]} Bh4
{[%emt 0:00:08]} 25. Qf3 {[%emt 0:00:05]} Kg7 {[%emt 0:00:11]} 26. Qe4 {
[%emt 0:00:15]} Bf5 {[%emt 0:00:13]} 27. Qf3 {[%emt 0:00:07]} Qg5 {[%emt 0:00:
11]} 28. Rfe1 {[%emt 0:00:16]} Qd8 {[%emt 0:00:08]} 29. Ra4 {[%emt 0:00:08]}
Bf6 {[%emt 0:00:06]} 30. Qg3 {[%emt 0:00:06]} b5 {[%emt 0:00:05]} 31. Raa1 {
[%emt 0:00:07]} Bc8 {[%emt 0:00:12]} 32. Re4 {[%emt 0:00:08]} b4 {[%emt 0:00:
10]} 33. c3 {[%emt 0:00:04]} bxc3 {[%emt 0:00:02]} 34. bxc3 {[%emt 0:00:02]}
Qe7 {[%emt 0:00:09]} 35. c4 {[%emt 0:00:21]} Kh6 {[%emt 0:00:16]} 36. Qe3+ {
[%emt 0:00:06]} Kg7 {[%emt 0:00:06]} 37. Qg3 {[%emt 0:00:04]} Bb7 {[%emt 0:00:
05]} 38. Ra5 {[%emt 0:00:06]} Qc7 {[%emt 0:00:07]} 39. Ra1 {[%emt 0:00:08]} Qb6
{[%emt 0:00:02]} 40. Rb1 {[%emt 0:00:11]} Bc8 {[%emt 0:00:03]} 41. Ree1 {
[%emt 0:00:12]} Qd8 {[%emt 0:00:10]} 42. Re4 {[%emt 0:00:05]} Qe7 {[%emt 0:00:
11]} 43. Ree1 {[%emt 0:00:10]} Bg5 {[%emt 0:00:18]} 44. Re4 {[%emt 0:00:09]}
Bd7 {[%emt 0:00:04]} 45. Ra1 {[%emt 0:00:07]} Rb7 {[%emt 0:00:08]} 46. Rb1 {
[%emt 0:00:17]} a5 {[%emt 0:00:03]} 47. Ree1 {[%emt 0:00:08]} Qf6 {[%emt 0:00:
03]} 48. Re4 {[%emt 0:00:09]} a4 {[%emt 0:00:04]} 49. Ree1 {[%emt 0:00:09]}
axb3 {[%emt 0:00:02]} 50. Rb2 {[%emt 0:00:01]} Bh4 {[%emt 0:00:06]} 51. Qe3 {
[%emt 0:00:06]} Ba4 {[%emt 0:00:09]} 52. Ra1 {[%emt 0:00:06]} Rb4 {[%emt 0:00:
03]} 53. Kf1 {[%emt 0:00:25]} e4 {[%emt 0:00:03]} 54. Rbb1 {[%emt 0:00:15]}
exd3 {[%emt 0:00:08]} 55. Qxd3 {[%emt 0:00:05]} Qxf2# {[%emt 0:00:02]
TallSnazzyBall won by checkmate} 0-1

[Event "Fast Chess"]
[Site "ChessKid.com"]
[Date "2020.04.30"]
[Round "1"]
[White "Dai, Lana"]
[Black "Sasse, Gabriel"]
[Result "1/2-1/2"]
[ECO "C50"]
[WhiteElo "1307"]
[BlackElo "1275"]
[PlyCount "153"]
[EventDate "2020.??.??"]
[TimeControl "1200"]
[WhiteClock "0:14:46"]
[BlackClock "0:12:29"]

1. e4 {[%emt 0:00:02]} e5 {[%emt 0:00:00]} 2. Nf3 {[%emt 0:00:01]} Nc6 {
[%emt 0:00:01]} 3. Nc3 {[%emt 0:00:01]} Bc5 {[%emt 0:00:00]} 4. Bc4 {[%emt 0:
00:03]} h6 {[%emt 0:00:01]} 5. a3 {[%emt 0:00:03]} a6 {[%emt 0:00:00]} 6. b4 {
[%emt 0:00:02]} b5 {[%emt 0:00:00]} 7. bxc5 {[%emt 0:00:01]} bxc4 {[%emt 0:00:
01]} 8. h3 {[%emt 0:00:02]} Nf6 {[%emt 0:00:01]} 9. d3 {[%emt 0:00:07]} O-O {
[%emt 0:00:00]} 10. dxc4 {[%emt 0:00:01]} Nd4 {[%emt 0:00:03]} 11. Nxd4 {
[%emt 0:00:03]} exd4 {[%emt 0:00:01]} 12. Qxd4 {[%emt 0:00:02]} Re8 {[%emt 0:
00:06]} 13. O-O {[%emt 0:00:07]} c6 {[%emt 0:00:11]} 14. e5 {[%emt 0:00:04]}
Nh5 {[%emt 0:00:06]} 15. Qd1 {[%emt 0:00:31]} Rxe5 {[%emt 0:00:18]} 16. Na4 {
[%emt 0:00:15]} Nf6 {[%emt 0:00:14]} 17. Re1 {[%emt 0:00:05]} Rxe1+ {[%emt 0:
00:06]} 18. Qxe1 {[%emt 0:00:02]} d6 {[%emt 0:00:04]} 19. Nb6 {[%emt 0:00:08]}
Rb8 {[%emt 0:00:03]} 20. Nxc8 {[%emt 0:00:03]} Qxc8 {[%emt 0:00:03]} 21. cxd6 {
[%emt 0:00:01]} Qd8 {[%emt 0:00:01]} 22. Qe5 {[%emt 0:00:03]} Qe8 {[%emt 0:00:
21]} 23. Qxe8+ {[%emt 0:00:03]} Rxe8 {[%emt 0:00:04]} 24. Bf4 {[%emt 0:00:07]}
Nh5 {[%emt 0:00:02]} 25. d7 {[%emt 0:00:05]} Rd8 {[%emt 0:00:02]} 26. Bc7 {
[%emt 0:00:12]} Rxd7 {[%emt 0:00:01]} 27. Be5 {[%emt 0:00:07]} Re7 {[%emt 0:00:
07]} 28. Bd6 {[%emt 0:00:09]} Re6 {[%emt 0:00:02]} 29. Bb4 {[%emt 0:00:02]} Nf6
{[%emt 0:00:02]} 30. Rd1 {[%emt 0:00:05]} Ne4 {[%emt 0:00:05]} 31. Re1 {
[%emt 0:00:10]} Ng5 {[%emt 0:00:07]} 32. Rxe6 {[%emt 0:00:03]} Nxe6 {[%emt 0:
00:03]} 33. g4 {[%emt 0:00:02]} Nd4 {[%emt 0:00:01]} 34. c3 {[%emt 0:00:08]}
Ne2+ {[%emt 0:00:02]} 35. Kf1 {[%emt 0:00:02]} Nf4 {[%emt 0:00:01]} 36. h4 {
[%emt 0:00:07]} g5 {[%emt 0:00:05]} 37. hxg5 {[%emt 0:00:02]} hxg5 {[%emt 0:00:
01]} 38. a4 {[%emt 0:00:22]} Kh7 {[%emt 0:00:03]} 39. Bd6 {[%emt 0:00:09]} Nd3
{[%emt 0:00:10]} 40. Be7 {[%emt 0:00:08]} Kg6 {[%emt 0:00:03]} 41. Ke2 {
[%emt 0:00:04]} Nb2 {[%emt 0:00:01]} 42. Bc5 {[%emt 0:00:22]} Nxc4 {[%emt 0:00:
03]} 43. Kf3 {[%emt 0:00:05]} Nb2 {[%emt 0:00:04]} 44. a5 {[%emt 0:00:04]} Nc4
{[%emt 0:00:02]} 45. Bb4 {[%emt 0:00:05]} Ne5+ {[%emt 0:00:02]} 46. Kg3 {
[%emt 0:00:04]} Nd3 {[%emt 0:00:02]} 47. Ba3 {[%emt 0:00:04]} f5 {[%emt 0:00:
08]} 48. gxf5+ {[%emt 0:00:02]} Kxf5 {[%emt 0:00:01]} 49. f3 {[%emt 0:00:05]}
Ne5 {[%emt 0:00:08]} 50. Bd6 {[%emt 0:00:10]} Nc4 {[%emt 0:00:01]} 51. Bb4 {
[%emt 0:00:11]} Ne3 {[%emt 0:00:03]} 52. Bc5 {[%emt 0:00:06]} Nf1+ {[%emt 0:00:
09]} 53. Kg2 {[%emt 0:00:04]} Nd2 {[%emt 0:00:02]} 54. Bd6 {[%emt 0:00:14]} Nc4
{[%emt 0:00:03]} 55. Bb4 {[%emt 0:00:07]} Ne3+ {[%emt 0:00:03]} 56. Kg3 {
[%emt 0:00:03]} Nd1 {[%emt 0:00:10]} 57. c4 {[%emt 0:00:07]} Nb2 {[%emt 0:00:
02]} 58. c5 {[%emt 0:00:05]} Nd3 {[%emt 0:00:03]} 59. Ba3 {[%emt 0:00:06]} Nf4
{[%emt 0:00:09]} 60. Bc1 {[%emt 0:00:07]} Nh5+ {[%emt 0:00:03]} 61. Kf2 {
[%emt 0:00:04]} g4 {[%emt 0:00:05]} 62. fxg4+ {[%emt 0:00:03]} Kxg4 {[%emt 0:
00:01]} 63. Ke3 {[%emt 0:00:04]} Nf6 {[%emt 0:00:07]} 64. Kd4 {[%emt 0:00:03]}
Nd7 {[%emt 0:00:01]} 65. Ba3 {[%emt 0:00:10]} Kf5 {[%emt 0:00:02]} 66. Bb2 {
[%emt 0:00:10]} Ke6 {[%emt 0:00:02]} 67. Ba3 {[%emt 0:00:03]} Ne5 {[%emt 0:00:
12]} 68. Bb4 {[%emt 0:00:08]} Nf3+ {[%emt 0:00:05]} 69. Kc4 {[%emt 0:00:02]}
Ne5+ {[%emt 0:00:03]} 70. Kd4 {[%emt 0:00:02]} Ng4 {[%emt 0:00:06]} 71. Bd2 {
[%emt 0:00:09]} Ne5 {[%emt 0:00:04]} 72. Bf4 {[%emt 0:00:07]} Nf3+ {[%emt 0:00:
03]} 73. Kc4 {[%emt 0:00:12]} Ne5+ {[%emt 0:00:09]} 74. Kd4 {[%emt 0:00:03]}
Nf3+ {[%emt 0:00:06]} 75. Kc4 {[%emt 0:00:02]} Nh4 {[%emt 0:00:05]} 76. Bg5 {
[%emt 0:00:04]} Nf3 {[%emt 0:00:03]} 77. Bf4 {[%emt 0:00:03] Game drawn by
repetition} 1/2-1/2